bitfinex/quotes_SOLUSD_20220228
["timestamp","ask_amount","ask_price","bid_price","bid_amount"]
[1646047846526,1.42336586,90.182,90.091,28.05496927]
[1646047846725,1.42336586,90.182,90.091,51.17669495]
[1646047846927,1.42336586,90.182,90.092,25.30818006]
[1646047847324,1.42336586,90.182,90.093,2.74678921]
[1646047847725,1.42336586,90.182,90.094,25.30818006]
[1646047848124,47.37784191,90.185,90.095,2.74678921]
[1646047848325,157.97784191,90.185,90.095,7.18378921]
[1646047848527,47.37784191,90.185,90.096,25.30818006]
[1646047848726,47.37784191,90.185,90.096,28.05496927]
[1646047848929,47.37784191,90.185,90.097,2.74678921]
[1646047849326,47.37784191,90.185,90.1,16.03]
[1646047849727,47.37784191,90.185,90.101,25.30818006]
[1646047851028,110.6,90.183,90.101,25.30818006]
[1646047851228,1.55465402,90.182,90.101,25.30818006]
[1646047851828,1.55465402,90.182,90.1,16.03]
[1646047852730,47.37784191,90.185,90.1,16.03]
[1646047852930,47.37784191,90.185,90.101,25.31678983]
[1646047853130,47.37784191,90.185,90.101,28.06357904]
[1646047853335,47.37784191,90.185,90.102,28.06357904]
[1646047853530,47.37784191,90.185,90.103,4.437]
[1646047853730,47.37784191,90.185,90.104,25.31678983]
[1646047853932,47.37784191,90.185,90.105,4.437]
[1646047854331,47.37784191,90.185,90.106,25.31678983]
[1646047854533,47.37784191,90.185,90.107,4.437]
[1646047854731,47.37784191,90.185,90.106,28.06357904]
[1646047854934,47.37784191,90.185,90.107,2.74678921]
[1646047855132,47.37784191,90.185,90.107,28.06357904]
[1646047855534,47.37784191,90.185,90.108,28.06357904]
[1646047855933,47.37784191,90.185,90.109,28.06357904]
[1646047856335,47.37784191,90.185,90.11,28.06357904]
[1646047856634,47.37784191,90.185,90.111,25.31678983]
[1646047856835,47.37784191,90.185,90.111,28.06357904]
[1646047857037,47.37784191,90.185,90.112,7.18378921]
[1646047857434,47.37784191,90.185,90.113,28.06357904]
[1646047857857,47.37784191,90.185,90.114,28.06357904]
[1646047858259,47.37784191,90.185,90.115,28.06357904]
[1646047858659,47.37784191,90.185,90.116,2.74678921]
[1646047858858,47.37784191,90.185,90.12,16.03]
[1646047859263,47.37784191,90.185,90.121,25.31678983]
[1646047860258,47.37784191,90.185,90.12,16.03]
[1646047860758,47.37784191,90.185,90.121,25.31377481]
[1646047861859,47.37784191,90.185,90.122,2.74678921]
[1646047862060,47.37784191,90.185,90.122,113.34678921]
[1646047862461,47.37784191,90.185,90.123,28.06056402]
[1646047862861,157.97784191,90.185,90.12,16.03]
[1646047863061,1.82424759,90.184,90.112,4.437]
[1646047863860,112.42424759,90.184,90.112,4.437]
[1646047864161,1.81639841,90.183,90.112,4.437]
[1646047869969,47.37784191,90.185,90.112,4.437]
[1646047870567,47.37784191,90.185,90.113,2.74678921]
[1646047872168,47.37784191,90.185,90.114,25.34178412]
[1646047872367,157.97784191,90.185,90.114,25.34178412]
[1646047872570,157.97784191,90.185,90.112,4.437]
[1646047873468,1.55076189,90.184,90.112,4.437]
[1646047874069,110.6,90.183,90.112,4.437]
[1646047874269,1.43319777,90.182,90.112,4.437]
[1646047880971,1.73130578,90.181,90.112,4.437]
[1646047881571,4.437,90.18,90.112,4.437]
[1646047882272,110.6,90.179,90.112,4.437]
[1646047882472,1.51530562,90.178,90.112,4.437]
[1646047883772,110.6,90.178,90.112,4.437]
[1646047884073,1.58173972,90.177,90.112,4.437]
[1646047887075,4.437,90.176,90.078,24.2344]
[1646047887277,115.037,90.176,90.078,24.2344]
[1646047887476,1.77287924,90.175,90.078,24.2344]
[1646047887776,1.41695665,90.168,90.079,25.39159431]
[1646047887974,4.438,90.167,90.079,25.39159431]
[1646047888174,4.438,90.167,90.078,24.2344]
[1646047888574,1.89581535,90.166,90.079,25.39064784]
[1646047888774,3.62712113,90.166,90.079,25.39064784]
[1646047888974,1.89581535,90.166,90.078,24.2344]
[1646047889674,1.5861877,90.165,90.079,25.38499501]
[1646047894981,1.88113632,90.164,90.079,25.38499501]
[1646047896382,1.5861877,90.165,90.079,25.38499501]
[1646047897981,1.5861877,90.165,90.08,18.77678921]
[1646047898184,1.65362548,90.183,90.08,55.31191565]
[1646047898382,1.65362548,90.183,90.081,51.31336527]
[1646047898583,1.65362548,90.183,90.081,87.84849171]
[1646047898782,1.65362548,90.183,90.082,51.31336527]
[1646047898982,1.65362548,90.183,90.082,87.84849171]
[1646047899181,1.65362548,90.183,90.083,74.52175762]
[1646047899582,1.65362548,90.183,90.084,51.34017657]
[1646047899785,1.65362548,90.183,90.084,74.52175762]
[1646047899984,1.65362548,90.183,90.085,2.74678921]
[1646047900183,110.6,90.188,90.086,177.03]
[1646047900384,22.8508,90.189,90.1,16.03]
[1646047900583,22.8508,90.189,90.102,110.6]
[1646047900785,22.8508,90.189,90.103,25.38499501]
[1646047900983,22.8508,90.189,90.106,110.6]
[1646047901185,22.8508,90.189,90.12,16.03]
[1646047901783,22.8508,90.189,90.121,2.74678921]
[1646047903186,1.80645193,90.183,90.12,16.03]
[1646047903784,24.66945902,90.182,90.106,2.74678921]
[1646047904184,24.66945902,90.182,90.107,25.13601649]
[1646047904584,110.6,90.181,90.107,25.13601649]
[1646047904784,24.66945902,90.182,90.107,25.13601649]
[1646047904985,1.37356266,90.181,90.106,2.74678921]
[1646047905184,22.9837,90.182,90.108,2.74678921]
[1646047905787,1.43591609,90.181,90.108,2.74678921]
[1646047906688,22.9837,90.182,90.108,2.74678921]
[1646047907088,22.9837,90.182,90.12,16.03]
[1646047907290,22.9837,90.182,90.11,16.03]
[1646047907489,22.9837,90.182,90.121,2.74678921]
[1646047909491,22.9837,90.182,90.122,25.13071646]
[1646047909791,22.9837,90.182,90.123,2.74678921]
[1646047910289,22.9837,90.182,90.124,25.13071646]
[1646047910691,22.9837,90.182,90.125,2.74678921]
[1646047911595,110.6,90.226,90.125,10.28678921]
[1646047911794,1.48689415,90.225,90.126,72.6119624]
[1646047912092,1.48689415,90.225,90.13,16.03]
[1646047912493,1.48689415,90.225,90.131,2.74678921]
[1646047912695,50.37254653,90.224,90.131,76.97473266]
[1646047912896,50.37254653,90.224,90.132,179.40488183]
[1646047913097,50.37254653,90.224,90.133,2.33324639]
[1646047913296,50.37254653,90.224,90.135,2.71593312]
[1646047913598,50.37254653,90.224,90.15,16.03]
[1646047913796,50.37254653,90.224,90.15,24.77]
[1646047914012,50.37254653,90.224,90.151,27.87035926]
[1646047914416,50.37254653,90.224,90.152,27.87035926]
[1646047914918,50.37254653,90.224,90.151,49.58039235]
[1646047914919,50.37254653,90.224,90.154,66.43]
[1646047915116,50.37254653,90.224,90.154,179.67674627]
[1646047915316,50.37254653,90.224,90.155,2.74678921]
[1646047915516,50.37254653,90.224,90.17,16.03]
[1646047915718,50.37254653,90.224,90.17,22.49]
[1646047915918,24.3566,90.27,90.171,113.34678921]
[1646047916119,22.6133,90.259,90.171,26.90138921]
[1646047916319,22.6133,90.259,90.172,2.74678921]
[1646047916517,24.3402915,90.259,90.172,2.74678921]
[1646047916917,51.94982461,90.258,90.172,2.74678921]
[1646047921322,51.94982461,90.258,90.172,113.34678921]
[1646047921722,51.94982461,90.258,90.176,110.6]
[1646047921924,51.94982461,90.258,90.19,16.03]
[1646047922125,51.94982461,90.258,90.191,110.6]
[1646047922424,51.94982461,90.258,90.191,2.74678921]
[1646047924337,51.94982461,90.258,90.19,16.03]
[1646047924338,23.3751,90.257,90.19,16.03]
[1646047925538,51.94982461,90.258,90.19,16.03]
[1646047925739,1.43976,90.309,90.191,179.77678921]
[1646047925939,112.03976,90.309,90.191,69.17678921]
[1646047926138,110.6,90.307,90.192,26.50588921]
[1646047926539,1.50828004,90.306,90.193,2.74678921]
[1646047926741,1.62658641,90.303,90.193,113.34678921]
[1646047927139,1.62658641,90.303,90.194,2.74678921]
[1646047927340,1.62658641,90.303,90.196,66.43]
[1646047927539,1.62658641,90.303,90.194,2.74678921]
[1646047927540,54.34031542,90.305,90.212,110.6]
[1646047927740,54.34031542,90.305,90.221,110.6]
[1646047928039,102.16900729,90.333,90.235,110.6]
[1646047928040,1.74061495,90.327,90.235,110.6]
[1646047928239,1.43590913,90.332,90.246,66.43]
[1646047928440,77.55390689,90.333,90.26,16.03]
[1646047928641,112.00969515,90.346,90.26,23.03]
[1646047928839,1.58913753,90.345,90.261,27.88018997]
[1646047929042,59.93434485,90.344,90.261,27.88018997]
[1646047929241,1.77807412,90.343,90.262,21.88018997]
[1646047929439,1.77807412,90.343,90.263,6.0]
[1646047929840,1.77807412,90.343,90.263,25.13340076]
[1646047930040,59.93434485,90.344,90.263,25.13340076]
[1646047930239,59.93434485,90.344,90.264,2.74678921]
[1646047930444,46.2821,90.347,90.267,110.6]
[1646047930642,46.2821,90.347,90.28,16.03]
[1646047930843,46.2821,90.347,90.281,6.0]
[1646047931042,47.85246404,90.347,90.281,6.0]
[1646047931444,60.78447138,90.346,90.282,2.74678921]
[1646047931642,112.10973021,90.376,90.283,6.0]
[1646047931845,1.50973021,90.376,90.283,25.13340076]
[1646047932043,1.50973021,90.376,90.284,21.88018997]
[1646047932244,1.50973021,90.376,90.286,66.43]
[1646047932543,48.51229628,90.375,90.29,16.03]
[1646047932767,1.83926793,90.374,90.29,16.03]
[1646047932944,1.83926793,90.374,90.291,6.0]
[1646047933143,1.83926793,90.374,90.291,8.74678921]
[1646047933343,1.83926793,90.374,90.292,2.74678921]
[1646047933542,1.83926793,90.374,90.293,6.0]
[1646047933946,1.83926793,90.374,90.293,8.74678921]
[1646047935844,1.83926793,90.374,90.294,19.13340076]
[1646047936044,1.83926793,90.374,90.295,6.0]
[1646047936244,1.83926793,90.374,90.3,16.03]
[1646047936444,1.83926793,90.374,90.301,6.0]
[1646047937047,46.7445,90.377,90.302,113.34678921]
[1646047937244,46.7445,90.377,90.304,110.6]
[1646047937445,46.7445,90.377,90.305,6.0]
[1646047937646,46.7445,90.377,90.32,16.03]
[1646047937845,1.4333018,90.416,90.321,6.0]
[1646047938046,47.53728454,90.378,90.321,28.5165]
[1646047938246,47.53728454,90.378,90.321,6.0]
[1646047938645,47.53728454,90.378,90.32,26.36678921]
[1646047938846,1.67687451,90.376,90.32,23.62]
[1646047939053,1.67687451,90.376,90.306,2.74678921]
[1646047939251,1.79704741,90.374,90.305,16.9093]
[1646047942073,1.77507182,90.373,90.305,16.9093]
[1646047942275,1.77507182,90.373,90.3,16.03]
[1646047942472,1.77507182,90.373,90.301,6.0]
[1646047942875,1.77507182,90.373,90.291,6.0]
[1646047945679,1.77507182,90.373,90.29,16.03]
[1646047947386,4.428,90.372,90.271,16.732]
[1646047947584,110.6,90.369,90.271,16.732]
[1646047947783,110.6,90.367,90.271,16.732]
[1646047947983,1.61272657,90.366,90.25,16.03]
[1646047948183,1.61272657,90.366,90.251,6.0]
[1646047948384,4.429,90.365,90.251,6.0]
[1646047948884,112.29606183,90.353,90.241,24.285]
[1646047949083,159.83727121,90.349,90.241,24.285]
[1646047949283,110.6,90.347,90.241,24.285]
[1646047949484,6.28853722,90.346,90.241,24.285]
[1646047949685,110.6,90.345,90.241,24.285]
[1646047949888,110.6,90.339,90.241,24.285]
[1646047950085,110.6,90.337,90.241,24.285]
[1646047950385,1.57989008,90.336,90.22,16.03]
[1646047950586,4.43,90.335,90.22,16.03]
[1646047950785,1.8406359,90.328,90.206,22.7894]
[1646047950987,4.431,90.327,90.206,39.8038]
[1646047951586,0.86565289,90.326,90.206,39.8038]
[1646047951784,4.431,90.325,90.206,39.8038]
[1646047952086,4.431,90.325,90.206,62.01116466]
[1646047952284,1.8406359,90.328,90.207,22.22044772]
[1646047952787,4.431,90.327,90.208,22.20736466]
[1646047952984,110.6,90.326,90.206,17.0144]
[1646047953185,6.16230578,90.327,90.193,22.20736466]
[1646047953186,110.6,90.31,90.193,11.57847064]
[1646047953385,110.6,90.306,90.193,11.57847064]
[1646047953586,1.82363358,90.298,90.193,11.57847064]
[1646047953786,112.05246995,90.296,90.193,28.51217064]
[1646047953987,110.6,90.294,90.193,28.51217064]
[1646047954186,110.6,90.292,90.193,28.51217064]
[1646047954387,1.43100656,90.291,90.193,28.51217064]
[1646047955786,110.6,90.289,90.193,16.9337]
[1646047955988,1.48034501,90.286,90.193,16.9337]
[1646047956287,1.82857569,90.283,90.193,16.9337]
[1646047959292,4.432,90.282,90.193,16.9337]
[1646047961896,1.82857569,90.283,90.193,16.9337]
[1646047963097,110.6,90.279,90.16,32.8766]
[1646047963297,110.6,90.276,90.16,32.8766]
[1646047963498,110.6,90.274,90.161,11.58293963]
[1646047963699,110.6,90.259,90.161,11.58293963]
[1646047963901,1.45030198,90.258,90.161,11.58293963]
[1646047965101,112.29150941,90.256,90.161,11.58293963]
[1646047965308,1.6067679,90.255,90.161,11.58293963]
[1646047965501,1.6067679,90.255,90.16,16.8466]
[1646047967707,1.6067679,90.255,90.16,39.05396466]
[1646047968808,1.6067679,90.255,90.16,16.8466]
[1646047969209,1.65321534,90.253,90.16,16.8466]
[1646047972214,16.03,90.25,90.148,13.53512429]
[1646047972410,159.99611696,90.249,90.133,13.53512429]
[1646047972612,110.6,90.247,90.125,22.22044772]
[1646047972812,110.6,90.245,90.126,23.16489888]
[1646047973013,110.6,90.243,90.126,23.16489888]
[1646047973212,110.6,90.239,90.122,23.0707]
[1646047973514,110.6,90.237,90.122,23.0707]
[1646047973711,1.46322911,90.234,90.122,23.0707]
[1646047973912,1.46661968,90.228,90.122,23.0707]
[1646047974332,110.6,90.226,90.122,23.0707]
[1646047974533,110.6,90.224,90.12,16.03]
[1646047974732,110.6,90.219,90.1,16.03]
[1646047974932,16.03,90.22,90.09,16.9874]
[1646047974933,110.6,90.217,90.09,16.9874]
[1646047975133,110.6,90.217,90.07,16.03]
[1646047975134,110.6,90.215,90.082,22.22044772]
[1646047975333,1.69767802,90.212,90.085,10.0]
[1646047975536,1.79644763,90.198,90.085,10.0]
[1646047975734,1.40527391,90.196,90.082,22.22044772]
[1646047975934,4.437,90.195,90.082,22.22044772]
[1646047977537,4.437,90.195,90.083,22.20736466]
[1646047977735,1.40527391,90.196,90.083,22.20736466]
[1646047977936,1.40527391,90.196,90.084,35.75557201]
[1646047978338,1.40527391,90.196,90.085,24.3624]
[1646047979838,4.437,90.195,90.085,24.3624]
[1646047980038,110.57046675,90.189,90.08,16.03]
[1646047980240,110.57046675,90.186,90.08,16.03]
[1646047980439,49.65037954,90.187,90.08,16.03]
[1646047980440,110.57046675,90.184,90.08,16.03]
[1646047980640,1.55098028,90.183,90.08,16.03]
[1646047980839,110.57046675,90.182,90.08,16.03]
[1646047981037,110.57046675,90.18,90.08,16.03]
[1646047981238,110.57046675,90.178,90.08,16.03]
[1646047981540,1.44559392,90.177,90.08,16.03]
[1646047983739,1.44559392,90.177,90.074,22.5983]
[1646047984540,4.438,90.176,90.074,22.5983]
[1646047984940,110.57046675,90.175,90.074,22.5983]
[1646047985139,110.57046675,90.169,90.061,4.438]
[1646047985339,110.57046675,90.167,90.061,4.438]
[1646047985539,110.57046675,90.165,90.061,4.438]
[1646047985740,1.66819393,90.162,90.061,4.438]
[1646047985942,110.57046675,90.149,90.061,4.438]
[1646047986139,110.57046675,90.147,90.061,4.438]
[1646047986340,1.49528686,90.146,90.061,4.438]
[1646047986541,110.57046675,90.145,90.061,4.438]
[1646047986740,1.42259812,90.144,90.061,4.438]
[1646047987339,110.57046675,90.145,90.061,4.438]
[1646047987540,1.67083181,90.146,90.061,4.438]
[1646047989641,110.57046675,90.144,90.061,4.438]
[1646047989842,110.57046675,90.129,90.061,4.438]
[1646047990043,110.57046675,90.127,90.024,16.7892]
[1646047990242,1.73717637,90.126,90.024,16.7892]
[1646047990842,1.73717637,90.126,90.024,38.99656466]
[1646047991043,1.73717637,90.126,90.025,14.48845762]
[1646047991443,1.73717637,90.126,90.026,22.20736466]
[1646047991843,1.73717637,90.126,90.027,14.48845762]
[1646047992244,4.44,90.125,90.027,14.48845762]
[1646047992447,110.57046675,90.124,90.027,14.48845762]
[1646047992648,11.56,90.125,90.021,23.543]
[1646047992649,110.57046675,90.122,90.021,23.543]
[1646047992845,110.57046675,90.122,90.013,14.48845762]
[1646047992846,161.6888438,90.119,90.013,14.48845762]
[1646047993045,110.57046675,90.117,89.997,44.42781238]
[1646047993247,110.57046675,90.115,89.997,22.20736466]
[1646047993445,110.57046675,90.109,89.997,22.20736466]
[1646047993645,110.57046675,90.107,89.997,22.20736466]
[1646047993847,110.57046675,90.105,89.997,34.19582228]
[1646047994046,110.57046675,90.103,89.997,34.19582228]
[1646047994246,1.60543184,90.102,89.997,34.19582228]
[1646047994447,112.43243966,90.099,89.997,14.48845762]
[1646047994648,110.57046675,90.097,89.997,14.48845762]
[1646047994847,1.42494008,90.096,89.997,14.48845762]
[1646047995050,4.442,90.095,89.997,9.48845762]
[1646047995449,110.57046675,90.093,89.991,24.8784]
[1646047995647,110.57046675,90.09,89.991,24.8784]
[1646047995849,110.57046675,90.09,89.992,21.99069799]
[1646047996048,1.5692785,90.089,89.992,21.99069799]
[1646047996649,66.43,90.085,89.966,22.22044772]
[1646047996848,177.00046675,90.079,89.97,2.74678921]
[1646047997052,177.00046675,90.077,89.931,11.60914083]
[1646047997249,177.00046675,90.059,89.906,2.99020971]
[1646047997549,1.56292061,90.056,89.903,47.2126]
[1646047997751,110.57046675,90.049,89.903,67.79458345]
[1646047997948,1.84689891,90.048,89.926,5.51141529]
[1646047998149,1.84689891,90.048,89.93,16.03]
[1646047998550,1.57161449,90.045,89.93,16.03]
[1646047998849,4.445,90.044,89.93,16.03]
[1646047999051,16.03,90.04,89.93,16.03]
[1646047999249,1.53626193,90.038,89.931,113.22584702]
[1646047999451,1.53626193,90.038,89.931,24.61918538]
[1646047999652,1.53626193,90.038,89.93,20.58198345]
[1646047999653,1.53626193,90.038,89.921,2.74678921]
[1646047999851,1.53626193,90.038,89.912,62.4302]
[1646048000052,1.73130578,90.037,89.912,45.564]
[1646048000253,112.33130578,90.037,89.912,45.564]
[1646048000453,110.6,90.035,89.912,45.564]
[1646048000654,110.6,90.019,89.913,2.74678921]
[1646048000855,110.6,90.017,89.913,2.74678921]
[1646048001053,1.62684147,90.016,89.913,2.74678921]
[1646048001455,1.62684147,90.016,89.896,2.74678921]
[1646048001656,115.046,90.015,89.896,2.74678921]
[1646048001853,1.53859907,90.014,89.884,48.1711]
[1646048002054,1.85317724,89.998,89.889,2.74678921]
[1646048002254,110.6,89.996,89.896,20.58198345]
[1646048002454,110.6,89.989,89.889,2.74678921]
[1646048002654,110.6,89.987,89.889,2.74678921]
[1646048002855,1.68945593,89.986,89.889,2.74678921]
[1646048004459,1.63033833,89.983,89.884,48.1711]
[1646048005462,1.63033833,89.983,89.877,2.74678921]
[1646048005662,177.03,89.979,89.849,49.83778921]
[1646048005959,1.63563672,89.976,89.849,49.83778921]
[1646048006159,4.448,89.975,89.849,49.83778921]
[1646048006360,110.6,89.959,89.85,2.74678921]
[1646048006566,110.6,89.957,89.85,2.74678921]
[1646048006765,110.6,89.955,89.85,2.74678921]
[1646048006962,110.6,89.953,89.85,2.74678921]
[1646048007262,1.65576363,89.952,89.85,2.74678921]
[1646048007463,110.6,89.951,89.85,2.74678921]
[1646048007781,1.70298263,89.95,89.85,2.74678921]
[1646048011068,1.70298263,89.95,89.854,66.43]
[1646048011267,23.703,89.952,89.854,177.03]
[1646048011469,23.703,89.952,89.855,27.14078915]
[1646048011669,23.703,89.952,89.86,16.03]
[1646048011872,58.72159418,89.958,89.861,177.03]
[1646048012070,58.72159418,89.958,89.862,2.77567126]
[1646048012470,58.72159418,89.958,89.864,2.90868306]
[1646048012872,58.72159418,89.958,89.866,177.03]
[1646048013071,58.72159418,89.958,89.88,16.03]
[1646048013274,110.6,89.957,89.88,16.03]
[1646048013472,110.6,89.957,89.867,2.74678921]
[1646048013672,1.62886291,89.956,89.881,2.74678921]
[1646048014474,1.62886291,89.956,89.862,22.6884]
[1646048014873,1.62886291,89.956,89.862,25.43518921]
[1646048015074,1.62886291,89.956,89.863,2.74678921]
[1646048015287,23.6467,89.955,89.863,2.74678921]
[1646048015491,1.75274422,89.954,89.863,2.74678921]
[1646048016294,1.75274422,89.954,89.865,66.43]
[1646048016494,58.72159418,89.958,89.866,2.2682476]
[1646048016695,58.72159418,89.958,89.87,16.03]
[1646048016895,58.72159418,89.958,89.871,2.87528371]
[1646048017295,58.72159418,89.958,89.875,177.03]
[1646048017497,58.72159418,89.958,89.89,16.03]
[1646048017895,25.59611231,89.984,89.89,16.03]
[1646048018095,1.4523616,89.983,89.891,2.74678921]
[1646048018896,60.10739373,89.982,89.891,2.74678921]
[1646048019104,60.10739373,89.982,89.891,72.03615013]
[1646048019297,60.10739373,89.982,89.892,2.47218543]
[1646048019496,60.10739373,89.982,89.892,2.74678921]
[1646048019896,60.10739373,89.982,89.893,2.74678921]
[1646048020897,60.10739373,89.982,89.894,200.22544615]
[1646048021096,60.10739373,89.982,89.895,2.44082082]
[1646048021298,60.10739373,89.982,89.895,5.18761003]
[1646048021498,60.10739373,89.982,89.896,2.74678921]
[1646048021698,60.10739373,89.982,89.9,16.03]
[1646048022097,60.10739373,89.982,89.901,2.74678921]
[1646048022896,60.10739373,89.982,89.901,69.17678921]
[1646048023097,60.10739373,89.982,89.902,2.77319875]
[1646048023299,60.10739373,89.982,89.902,5.51998796]
[1646048023497,60.10739373,89.982,89.903,2.74678921]
[1646048024699,112.32465666,89.981,89.903,2.74678921]
[1646048024902,1.80705624,89.98,89.9,16.03]
[1646048025100,1.80705624,89.98,89.89,16.03]
[1646048025299,110.6,89.978,89.876,2.74678921]
[1646048025499,1.72815036,89.977,89.876,2.74678921]
[1646048027001,4.448,89.976,89.876,2.74678921]
[1646048027202,4.448,89.976,89.87,32.3331]
[1646048027403,4.448,89.976,89.87,16.3031]
[1646048028403,4.448,89.976,89.87,19.04988921]
[1646048029407,110.6,89.975,89.861,47.6515]
[1646048029607,110.6,89.959,89.861,47.6515]
[1646048029805,110.6,89.957,89.861,47.6515]
[1646048030008,1.55173215,89.956,89.861,47.6515]
[1646048030205,110.6,89.954,89.861,47.6515]
[1646048030409,110.6,89.949,89.85,16.3344]
[1646048030607,110.6,89.947,89.85,16.3344]
[1646048030805,4.449,89.946,89.832,24.894]
[1646048031007,110.6,89.945,89.832,24.894]
[1646048031206,110.6,89.939,89.832,24.894]
[1646048031406,115.05,89.939,89.832,24.894]
[1646048031606,1.71300308,89.938,89.832,24.894]
[1646048034108,4.45,89.937,89.832,24.894]
[1646048035111,4.45,89.937,89.81,32.6951]
[1646048035309,4.45,89.937,89.812,22.7906]
[1646048035709,1.4093524,89.936,89.812,22.7906]
[1646048036010,1.4093524,89.936,89.812,45.98604615]
[1646048036409,1.4093524,89.936,89.812,67.85844232]
[1646048036611,1.63286487,89.933,89.812,67.85844232]
[1646048036810,110.6,89.929,89.812,67.85844232]
[1646048037011,110.6,89.927,89.813,115.05]
[1646048037211,1.78352022,89.926,89.814,177.03]
[1646048037412,1.78352022,89.926,89.815,4.45]
[1646048037818,1.78352022,89.926,89.815,92.75239617]
[1646048038410,1.78352022,89.926,89.815,115.94784232]
[1646048038610,1.78352022,89.926,89.817,66.43]
[1646048038810,1.78352022,89.926,89.83,16.03]
[1646048039011,1.78352022,89.926,89.841,110.6]
[1646048039212,48.05301234,89.928,89.85,16.03]
[1646048039511,1.37167041,89.927,89.86,16.03]
[1646048039710,48.05301234,89.928,89.85,6.52]
[1646048039911,48.05301234,89.928,89.86,16.03]
[1646048040412,1.78467461,89.945,89.86,16.03]
[1646048040610,23.7113,89.953,89.861,110.6]
[1646048040811,1.72852961,89.952,89.862,4.449]
[1646048041010,1.72852961,89.952,89.861,4.449]
[1646048041211,1.72852961,89.952,89.86,16.03]
[1646048041410,55.83659368,89.951,89.86,16.03]
[1646048041612,112.39200247,89.95,89.86,16.03]
[1646048041813,1.79200247,89.95,89.86,16.03]
[1646048042010,1.79200247,89.95,89.861,110.6]
[1646048042410,1.79200247,89.95,89.862,4.449]
[1646048043211,1.79200247,89.95,89.861,66.43]
[1646048043412,1.79200247,89.95,89.862,4.449]
[1646048043614,1.79200247,89.95,89.861,66.43]
[1646048044314,1.79200247,89.95,89.862,110.6]
[1646048045115,1.79200247,89.95,89.863,4.449]
[1646048045318,69.09480573,89.989,89.865,66.43]
[1646048045516,1.41927025,89.977,89.873,66.43]
[1646048045717,1.41927025,89.977,89.885,66.43]
[1646048045915,1.41927025,89.977,89.9,16.03]
[1646048046317,57.07697404,89.976,89.901,4.447]
[1646048046517,1.45078804,89.975,89.901,4.447]
[1646048046719,1.45078804,89.975,89.901,2.74678921]
[1646048046918,1.45078804,89.975,89.9,16.03]
[1646048047118,1.45078804,89.975,89.9,32.608]
[1646048047919,25.50268804,89.975,89.9,32.608]
[1646048048117,1.88722458,89.974,89.9,32.608]
[1646048049520,1.88722458,89.974,89.9,16.03]
[1646048049719,110.6,89.974,89.87,16.03]
[1646048049923,1.74665651,89.973,89.87,16.03]
[1646048050120,1.74665651,89.973,89.855,4.448]
[1646048050321,4.448,89.972,89.855,4.448]
[1646048050627,1.79781119,89.968,89.844,32.63549416]
[1646048050921,4.448,89.967,89.86,16.03]
[1646048051123,4.448,89.967,89.846,23.4637]
[1646048051321,4.448,89.967,89.85,16.03]
[1646048051523,4.448,89.967,89.86,16.03]
[1646048051722,4.448,89.967,89.861,22.5508]
[1646048051923,110.6,89.967,89.861,22.5508]
[1646048052123,1.4885768,89.966,89.861,22.5508]
[1646048052522,1.4885768,89.966,89.871,41.6504]
[1646048052723,110.6,89.965,89.871,41.6504]
[1646048052922,110.6,89.963,89.85,16.03]
[1646048053125,110.6,89.949,89.845,49.12579416]
[1646048053323,110.6,89.945,89.851,24.94489748]
[1646048053523,110.6,89.939,89.851,24.94489748]
[1646048053724,16.03,89.94,89.845,16.4903]
[1646048053725,110.6,89.937,89.846,24.94489748]
[1646048053925,1.86619327,89.936,89.846,24.94489748]
[1646048054325,1.47172605,89.934,89.846,24.94489748]
[1646048054525,1.57097571,89.931,89.843,24.94489748]
[1646048054926,1.57097571,89.931,89.822,24.94489748]
[1646048055126,1.57097571,89.931,89.823,4.45]
[1646048055527,1.57097571,89.931,89.823,25.13521949]
[1646048055728,1.57097571,89.931,89.824,24.94489748]
[1646048056325,1.57097571,89.931,89.824,160.68011697]
[1646048056549,1.57097571,89.931,89.826,110.6]
[1646048056726,1.57097571,89.931,89.84,16.03]